Workbook

Sheet 2022年11月
A1: 陆 丰 市 2022 年 11月 财 政 预 算 收 入 完 成 情 况 表
A2: 2022-11-30 | L2: 单位：万元
B3: 年 度 | C3: 累 计 | D3: 占 年 | E3: 上 年 | F3: 比上年 | G3: 比上年 | H3: 本 月 | I3: 上 年 | J3: 比上年 | K3: 比上年
A4: 收 入 项 目 | B4: 预 算 | C4: 完 成 | D4: 预 算 | E4: 同 期 | F4: 同期增 | G4: 同期增 | H4: 完 成 | I4: 同 月 | J4: 同月增 | K4: 同月增 | L4: 备 注
B5: 数 | C5: 数 | D5: % | E5: 完 成 | F5: 减额 | G5: (减)% | H5: 数 | I5: 完 成 | J5: 减额 | K5: (减)%
A6: （一）税收收入 | B6: =SUM(B7:B20) -> 62,550 | C6: =SUM(C7:C20) -> 37,302 | D6: =C6/B6*100 -> 59.6 | E6: =SUM(E7:E20) -> 47,672 | F6: =C6-E6 -> -10,370 | G6: =F6/E6*100 -> -21.8 | H6: 3,527 | I6: =SUM(I7:I20) -> 3,114 | J6: =H6-I6 -> 413 | K6: =J6/I6*100 -> 13.3
A7: 1、增值税 | B7: 15,532 | C7: 9,577 | D7: =C7/B7*100 -> 61.7 | E7: 12,371 | F7: =C7-E7 -> -2,794 | G7: =F7/E7*100 -> -22.6 | H7: 1,270 | I7: 955 | J7: =H7-I7 -> 315 | K7: =J7/I7*100 -> 33.0
A8: 2、企业所得税 | B8: 7,150 | C8: 3,728 | D8: =C8/B8*100 -> 52.1 | E8: 6,151 | F8: =C8-E8 -> -2,423 | G8: =F8/E8*100 -> -39.4 | H8: 26 | I8: 30 | J8: =H8-I8 -> -4 | K8: =J8/I8*100 -> -13.3
A9: 3、个人所得税 | B9: 1,403 | C9: 737 | D9: =C9/B9*100 -> 52.5 | E9: 1,027 | F9: =C9-E9 -> -290 | G9: =F9/E9*100 -> -28.2 | H9: 102 | I9: 89 | J9: =H9-I9 -> 13 | K9: =J9/I9*100 -> 14.6
A10: 4、资源税 | B10: 1,408 | C10: 152 | D10: =C10/B10*100 -> 10.8 | E10: 731 | F10: =C10-E10 -> -579 | G10: =F10/E10*100 -> -79.2 | H10: 100 | I10: 80 | J10: =H10-I10 -> 20 | K10: =J10/I10*100 -> 25.0
A11: 5、城市维护建设税 | B11: 5,715 | C11: 4,155 | D11: =C11/B11*100 -> 72.7 | E11: 4,554 | F11: =C11-E11 -> -399 | G11: =F11/E11*100 -> -8.8 | H11: 340 | I11: 341 | J11: =H11-I11 -> -1 | K11: =J11/I11*100 -> -0.3
A12: 6、房产税 | B12: 1,839 | C12: 2,544 | D12: =C12/B12*100 -> 138.3 | E12: 786 | F12: =C12-E12 -> 1,758 | G12: =F12/E12*100 -> 223.7 | H12: 499 | I12: 283 | J12: =H12-I12 -> 216 | K12: =J12/I12*100 -> 76.3
A13: 7、印花税 | B13: 1,785 | C13: 2,291 | D13: =C13/B13*100 -> 128.3 | E13: 1,428 | F13: =C13-E13 -> 863 | G13: =F13/E13*100 -> 60.4 | H13: 197 | I13: 57 | J13: =H13-I13 -> 140 | K13: =J13/I13*100 -> 245.6
A14: 8、城镇土地使用税 | B14: 1,905 | C14: 1,094 | D14: =C14/B14*100 -> 57.4 | E14: 458 | F14: =C14-E14 -> 636 | G14: =F14/E14*100 -> 138.9 | H14: 250 | I14: 158 | J14: =H14-I14 -> 92 | K14: =J14/I14*100 -> 58.2
A15: 9、土地增值税 | B15: 7,005 | C15: 3,981 | D15: =C15/B15*100 -> 56.8 | E15: 5,783 | F15: =C15-E15 -> -1,802 | G15: =F15/E15*100 -> -31.2 | H15: 217 | I15: 352 | J15: =H15-I15 -> -135 | K15: =J15/I15*100 -> -38.4
A16: 10、车船使用税 | B16: 1,714 | C16: 1,502 | D16: =C16/B16*100 -> 87.6 | E16: 1,348 | F16: =C16-E16 -> 154 | G16: =F16/E16*100 -> 11.4 | H16: 139 | I16: 129 | J16: =H16-I16 -> 10 | K16: =J16/I16*100 -> 7.8
A17: 11、环保税 | B17: 135 | C17: 217 | D17: =C17/B17*100 -> 160.7 | E17: 119 | F17: =C17-E17 -> 98 | G17: =F17/E17*100 -> 82.4 | H17: 4 | I17: 0 | J17: =H17-I17 -> 4
A18: 12、耕地占用税 | B18: 5,752 | C18: 2,137 | D18: =C18/B18*100 -> 37.2 | E18: 3,640 | F18: =C18-E18 -> -1,503 | G18: =F18/E18*100 -> -41.3 | H18: -134 | I18: 307 | J18: =H18-I18 -> -441 | K18: =J18/I18*100 -> -143.6
A19: 13、契 税 | B19: 11,206 | C19: 5,172 | D19: =C19/B19*100 -> 46.2 | E19: 9,275 | F19: =C19-E19 -> -4,103 | G19: =F19/E19*100 -> -44.2 | H19: 517 | I19: 333 | J19: =H19-I19 -> 184 | K19: =J19/I19*100 -> 55.3
A20: 14、其他税收收入 | B20: 1 | C20: 15 | D20: =C20/B20*100 -> 1500.0 | E20: 1 | F20: =C20-E20 -> 14 | G20: =F20/E20*100 -> 1,400.0 | H20: 0 | I20: 0 | J20: =H20-I20 -> 0
A21: （二）非税收入 | B21: =SUM(B22:B29) -> 51,425 | C21: =SUM(C22:C29) -> 69,452 | D21: =C21/B21*100 -> 135.1 | E21: =E22+E23+E24+E25+E26+E27+E28+E29 -> 39,847 | F21: =C21-E21 -> 29,605 | G21: =F21/E21*100 -> 74.3 | H21: =H22+H23+H24+H25+H26+H27+H28+H29 -> 5,123 | I21: =I22+I23+I24+I25+I26+I27+I28+I29 -> 1202 | J21: =H21-I21 -> 3,921 | K21: =J21/I21*100 -> 326.2
A22: 1、专项收入 | B22: 10,050 | C22: 3,186 | D22: =C22/B22*100 -> 31.7 | E22: 5,865 | F22: =C22-E22 -> -2,679 | G22: =F22/E22*100 -> -45.7 | H22: 485 | I22: 395 | J22: =H22-I22 -> 90 | K22: =J22/I22*100 -> 22.8
A23: 2、行政事业性收费收入 | B23: 13,700 | C23: 6,978 | D23: =C23/B23*100 -> 50.9 | E23: 11,448 | F23: =C23-E23 -> -4,470 | G23: =F23/E23*100 -> -39.0 | H23: 861 | I23: -265 | J23: =H23-I23 -> 1,126 | K23: =J23/I23*100 -> -424.9
A24: 3、罚没收入 | B24: 6,200 | C24: 18,767 | D24: =C24/B24*100 -> 302.7 | E24: 3,200 | F24: =C24-E24 -> 15,567 | G24: =F24/E24*100 -> 486.5 | H24: 3,750 | I24: 529 | J24: =H24-I24 -> 3,221 | K24: =J24/I24*100 -> 608.9
A25: 4、国有资源（资产）有偿使用收入 | B25: 10,420 | C25: 9,554 | D25: =C25/B25*100 -> 91.7 | E25: 7,393 | F25: =C25-E25 -> 2,161 | G25: =F25/E25*100 -> 29.2 | H25: 27 | I25: 32 | J25: =H25-I25 -> -5 | K25: =J25/I25*100 -> -15.6
A26: 5、政府住房基金收入 | B26: 150 | C26: 250 | D26: =C26/B26*100 -> 166.7 | E26: 290 | F26: =C26-E26 -> -40 | G26: =F26/E26*100 -> -13.8 | H26: 0 | I26: 0 | J26: =H26-I26 -> 0
A27: 6、捐赠收入 | B27: 10,000 | C27: 25,371 | D27: =C27/B27*100 -> 253.7 | E27: 10,185 | F27: =C27-E27 -> 15,186 | G27: =F27/E27*100 -> 149.1 | H27: 0 | I27: 500 | J27: =H27-I27 -> -500 | K27: =J27/I27*100 -> -100.0
A28: 7、其他收入 | B28: 900 | C28: 5,346 | D28: =C28/B28*100 -> 594.0 | E28: 1,461 | F28: =C28-E28 -> 3,885 | G28: =F28/E28*100 -> 265.9 | H28: 0 | I28: 6 | J28: =H28-I28 -> -6 | K28: =J28/I28*100 -> -100.0
A29: 8、国有资本经营收入 | B29: 5 | C29: 0 | D29: =C29/B29*100 -> 0.0 | E29: 5 | F29: =C29-E29 -> -5 | G29: =F29/E29*100 -> -100.0 | H29: 0 | I29: 5 | J29: =H29-I29 -> -5 | K29: =J29/I29*100 -> -100.0
A30: 一、一般公共预算收入 | B30: =B6+B21 -> 113,975 | C30: =C6+C21 -> 106,754 | D30: =C30/B30*100 -> 93.7 | E30: =E6+E21 -> 87,519 | F30: =C30-E30 -> 19,235 | G30: =F30/E30*100 -> 22.0 | H30: =H6+H21 -> 8,650 | I30: =I6+I21 -> 4316 | J30: =H30-I30 -> 4,334 | K30: =J30/I30*100 -> 100.4
A31: 二、政府性基金预算收入小计 | B31: 270,200 | C31: 27,060 | D31: =C31/B31*100 -> 10.0 | E31: 102,064 | F31: =C31-E31 -> -75,004 | G31: =F31/E31*100 -> -73.5 | H31: 7,623 | I31: 5,698 | J31: =H31-I31 -> 1,925 | K31: =J31/I31*100 -> 33.8
A32: 其中：国有土地使用权出让收入 | B32: 260,050 | C32: 23,847 | D32: =C32/B32*100 -> 9.2 | E32: 96,579 | F32: =C32-E32 -> -72,732 | G32: =F32/E32*100 -> -75.3 | H32: 7,537 | I32: 3,869 | J32: =H32-I32 -> 3,668 | K32: =J32/I32*100 -> 94.8
A33: 三、国有资本经营收入小计 | B33: 3,500 | C33: 764 | D33: =C33/B33*100 -> 21.8 | E33: 500 | F33: =C33-E33 -> 264 | G33: =F33/E33*100 -> 52.8 | H33: 196 | I33: 0 | J33: =H33-I33 -> 196
A34: 收入合计 | B34: =B30+B31+B33 -> 387,675 | C34: =C30+C31+C33 -> 134,578 | D34: =C34/B34*100 -> 34.7 | E34: =E30+E31+E33 -> 190,083 | F34: =C34-E34 -> -55,505 | G34: =F34/E34*100 -> -29.2 | H34: =H30+H31+H33 -> 16,469 | I34: =I30+I31+I33 -> 10014 | J34: =H34-I34 -> 6,455 | K34: =J34/I34*100 -> 64.5
L35: 陆丰市财政局国库股

Sheet Sheet1

Sheet Sheet2

Sheet Sheet3
